fUST/lending_fUST_20240217
["ID","MTS","AMOUNT","RATE_DAILY","PERIOD"]
[314270692,1708135832874,-153.0,0.00026301,2]
[314270693,1708135832883,-153.0,0.00026301,2]
[314270694,1708135832894,-200.3193593,0.00026301,2]
[314270695,1708135832904,-153.0,0.00026301,2]
[314270696,1708135832913,-200.2824076,0.00026301,2]
[314270697,1708135832922,-153.0,0.00026301,2]
[314270698,1708135832932,-200.2824076,0.00026301,2]
[314270699,1708135832941,-153.0,0.00026301,2]
[314270700,1708135832950,-200.2824076,0.00026301,2]
[314270701,1708135832959,-150.035,0.00026331,2]
[314270702,1708135832969,-166.666666,0.00026388,2]
[314270703,1708135833065,-151.0,0.0002641,2]
[314270704,1708135833100,-179.124858,0.0002641,2]
[314270705,1708135833111,-250.0,0.0002641,3]
[314270706,1708135833120,-5710.89,0.0002641,3]
[314270707,1708135833130,-4248.31065161,0.0002642,3]
[314270708,1708135833139,-250.0,0.0002649,3]
[314270709,1708135833148,-250.0,0.0002649,3]
[314270710,1708135833158,-250.0,0.0002649,3]
[314270711,1708135833167,-250.0,0.0002649,3]
[314270712,1708135833176,-287.87,0.0002649,3]
[314270713,1708135833188,-1308.47212404,0.000265,7]
[314270726,1708135841804,-9163.8665659,0.000265,7]
[314270727,1708135841818,-3418.25275689,0.000265,7]
[314270728,1708135841829,-151.287845,0.000265,2]
[314270729,1708135841838,-153.635977,0.000265,2]
[314270730,1708135841847,-109.89467246,0.00026507,2]
[314270731,1708135841859,-40.10532754,0.00026507,2]
[314270732,1708135841869,-12996.12002559,0.000267,2]
[314270739,1708135843348,-349.48034949,0.000267,2]
[314270740,1708135843360,-315271.41656892,0.000267,2]
[314270741,1708135843370,-644.32066568,0.00026734,2]
[314270742,1708135843380,-153.3390081,0.00026849,2]
[314270743,1708135843389,-166.666666,0.00026965,2]
[314270744,1708135843399,-153.0,0.00027123,2]
[314270745,1708135843408,-200.2824076,0.00027123,2]
[314270746,1708135843417,-200.2824076,0.00027123,2]
[314270747,1708135843426,-200.2824076,0.00027123,2]
[314270748,1708135843435,-200.2824076,0.00027123,2]
[314270749,1708135843444,-203.5341522,0.00027123,2]
[314270750,1708135843454,-153.0,0.00027123,2]
[314270751,1708135843463,-153.0,0.00027123,2]
[314270752,1708135843472,-306.0,0.00027123,2]
[314270753,1708135843482,-300.0,0.000273,13]
[314270754,1708135843492,-531.53967277,0.00027397,2]
[314270755,1708135843500,-500.0,0.00027397,2]
[314270756,1708135843510,-151.0,0.00027397,2]
[314270757,1708135843518,-151.0,0.00027397,2]
[314270758,1708135843528,-151.0,0.00027397,2]
[314270759,1708135843537,-161.252891,0.00027397,2]
[314270760,1708135843546,-500.0,0.00027397,2]
[314270761,1708135843555,-720.55,0.00027397,2]
[314270762,1708135843565,-738.38,0.00027397,2]
[314270763,1708135843576,-500.0,0.00027397,30]
[314270764,1708135843585,-500.0,0.00027397,2]
[314270765,1708135843594,-155.0,0.00027397,2]
[314270766,1708135843603,-572.36,0.00027397,2]
[314270767,1708135843612,-151.0,0.00027397,2]
[314270768,1708135843621,-153.872742,0.00027397,2]
[314270769,1708135843630,-1477.67,0.00027397,2]
[314270770,1708135843639,-1382.91,0.00027397,2]
[314270771,1708135843648,-500.0,0.00027397,2]
[314270772,1708135843657,-500.0,0.00027397,2]
[314270773,1708135843667,-500.0,0.00027397,2]
[314270774,1708135843676,-618.1,0.00027397,2]
[314270775,1708135843686,-739.4,0.00027397,2]
[314270776,1708135843695,-500.0,0.00027397,2]
[314270777,1708135843704,-981.09,0.00027397,2]
[314270778,1708135843713,-500.0,0.00027397,2]
[314270779,1708135843722,-1000.0,0.00027397,2]
[314270780,1708135843731,-500.0,0.00027397,2]
[314270781,1708135843740,-500.0,0.00027397,2]
[314270782,1708135843749,-525.7,0.00027397,2]
[314270783,1708135843758,-8176.88,0.00027397,2]
[314270784,1708135843767,-1146.36,0.00027397,2]
[314270785,1708135843776,-500.0,0.00027397,2]
[314270786,1708135843786,-11653.22,0.00027397,2]
[314270787,1708135843794,-500.0,0.00027397,2]
[314270788,1708135843803,-500.0,0.00027397,2]
[314270789,1708135843813,-500.0,0.00027397,2]
[314270790,1708135843826,-500.0,0.00027397,2]
[314270791,1708135843835,-500.0,0.00027397,2]
[314270792,1708135843844,-2563.96,0.00027397,2]
[314270793,1708135843853,-500.0,0.00027397,2]
[314270794,1708135843863,-1285.76,0.00027397,2]
[314270795,1708135843872,-500.0,0.00027397,2]
[314270796,1708135843881,-8220.15,0.00027397,2]
[314270797,1708135843890,-500.0,0.00027397,2]
[314270798,1708135843899,-585.24,0.00027397,2]
[314270799,1708135843908,-1135.68,0.00027397,2]
[314270800,1708135843917,-6995.47,0.00027397,2]
[314270801,1708135843926,-2191.29,0.00027397,2]
[314270802,1708135843935,-236.68500265,0.00027397,2]
[314270803,1708135843944,-833.47,0.00027397,2]
[314270804,1708135843953,-827.85502562,0.00027397,2]
[314270805,1708135843963,-502.31856666,0.00027397,2]
[314270806,1708135843972,-979.09,0.00027397,2]
[314270807,1708135843981,-1158.11,0.00027397,2]
[314270808,1708135843991,-366.79441515,0.00027397,2]
[314270809,1708135844000,-500.0,0.00027397,2]
[314270810,1708135844010,-459.81597321,0.00027397,2]
[314270811,1708135844019,-500.0,0.00027397,2]
[314270812,1708135844028,-993.08,0.00027397,2]
[314270813,1708135844037,-11696.44,0.00027397,2]
[314270814,1708135844047,-1785.54,0.00027397,2]
[314270815,1708135844056,-501.19909647,0.00027397,2]
[314270816,1708135844066,-6176.17,0.00027397,2]
[314270817,1708135844076,-5016.14,0.00027397,2]
[314270818,1708135844085,-799.95,0.00027397,2]
[314270819,1708135844094,-500.0,0.00027397,2]
[314270820,1708135844103,-1910.65,0.00027397,2]
[314270821,1708135844112,-1506.49,0.00027397,2]
[314270822,1708135844122,-1249.49,0.00027397,2]
[314270823,1708135844130,-1110.82,0.00027397,2]
[314270824,1708135844139,-500.0,0.00027397,2]
[314270825,1708135844149,-500.0,0.00027397,2]
[314270826,1708135844158,-150.03059786,0.00027397,2]
[314270827,1708135844167,-500.0,0.00027397,2]
[314270828,1708135844176,-500.0,0.00027397,2]
[314270829,1708135844185,-1025.06,0.00027397,2]
[314270830,1708135844194,-464.18575046,0.00027397,2]
[314270831,1708135844204,-737.58,0.00027397,2]
[314270832,1708135844213,-500.0,0.00027397,2]
[314270833,1708135844222,-500.0,0.00027424,2]
[314270834,1708135844231,-22842.05851594,0.00027471,2]
[314270835,1708135844240,-2971.81952716,0.000275,2]
[314270836,1708135844249,-150.0,0.00027507,2]
[314270837,1708135844258,-500.0,0.00027533,2]
[314270838,1708135844267,-420.60383771,0.00027533,2]
[314270839,1708135844276,-211.14532521,0.00027533,2]
[314270840,1708135844285,-500.0,0.00027533,2]
[314270841,1708135844294,-500.0,0.00027533,2]
[314270842,1708135844303,-229.58218312,0.00027533,2]
[314270843,1708135844312,-508.22928936,0.00027534,2]
[314270844,1708135844322,-166.666666,0.00027542,2]
[314270845,1708135844330,-13467.999998,0.000276,2]
[314270846,1708135844340,-500.0,0.00027671,2]
[314270847,1708135844349,-346.16238357,0.00027671,2]
[314270848,1708135844358,-720.55,0.00027671,2]
[314270849,1708135844367,-738.38,0.00027671,2]
[314270850,1708135844376,-235.36913666,0.00027671,30]
[314270851,1708135844385,-500.0,0.00027671,2]
[314270852,1708135844393,-572.36,0.00027671,2]
[314270853,1708135844403,-1477.67,0.00027671,2]
[314270854,1708135844415,-1382.91,0.00027671,2]
[314270855,1708135844424,-500.0,0.00027671,2]
[314270856,1708135844433,-500.0,0.00027671,2]
[314270857,1708135844442,-500.0,0.00027671,2]
[314270858,1708135844451,-618.1,0.00027671,2]
[314270859,1708135844461,-739.4,0.00027671,2]
[314270860,1708135844470,-209.71777673,0.00027671,2]
[314270861,1708135844480,-981.09,0.00027671,2]
[314270862,1708135844488,-500.0,0.00027671,2]
[314270863,1708135844497,-1000.0,0.00027671,2]
[314270864,1708135844506,-500.0,0.00027671,2]
[314270865,1708135844515,-500.0,0.00027671,2]
[314270866,1708135844524,-525.7,0.00027671,2]
[314270867,1708135844533,-8176.88,0.00027671,2]
[314270868,1708135844542,-500.0,0.00027671,2]
[314270869,1708135844551,-1146.36,0.00027671,2]
[314270870,1708135844560,-11653.22,0.00027671,2]
[314270871,1708135844570,-500.0,0.00027671,2]
[314270872,1708135844579,-500.0,0.00027671,2]
[314270873,1708135844589,-500.0,0.00027671,2]
[314270874,1708135844598,-500.0,0.00027671,2]
[314270875,1708135844607,-2563.96,0.00027671,2]
[314270876,1708135844616,-500.0,0.00027671,2]
[314270877,1708135844626,-1285.76,0.00027671,2]
[314270878,1708135844634,-500.0,0.00027671,2]
[314270879,1708135844644,-8220.15,0.00027671,2]
[314270880,1708135844653,-500.0,0.00027671,2]
[314270881,1708135844662,-585.24,0.00027671,2]
[314270882,1708135844671,-1135.68,0.00027671,2]
[314270883,1708135844680,-6995.47,0.00027671,2]
[314270884,1708135844689,-2191.29,0.00027671,2]
[314270885,1708135844698,-833.47,0.00027671,2]
[314270886,1708135844707,-979.09,0.00027671,2]
[314270887,1708135844716,-1158.11,0.00027671,2]
[314270888,1708135844725,-500.0,0.00027671,2]
[314270889,1708135844734,-500.0,0.00027671,2]
[314270890,1708135844743,-993.08,0.00027671,2]
[314270891,1708135844830,-11696.44,0.00027671,2]
[314270892,1708135844839,-1785.54,0.00027671,2]
[314270893,1708135844848,-6176.17,0.00027671,2]
[314270894,1708135844858,-5016.14,0.00027671,2]
[314270895,1708135844867,-799.95,0.00027671,2]
[314270896,1708135844876,-500.0,0.00027671,2]
[314270897,1708135844886,-1910.65,0.00027671,2]
[314270898,1708135844895,-1506.49,0.00027671,2]
[314270899,1708135844905,-1249.49,0.00027671,2]
[314270900,1708135844915,-1110.82,0.00027671,2]
[314270901,1708135844924,-500.0,0.00027671,2]
[314270902,1708135844933,-500.0,0.00027671,2]
[314270903,1708135844942,-500.0,0.00027671,2]
[314270904,1708135844951,-500.0,0.00027671,2]
[314270905,1708135844960,-1025.06,0.00027671,2]
[314270906,1708135844969,-737.58,0.00027671,2]
[314270907,1708135844978,-500.0,0.00027671,2]
[314270908,1708135844987,-300.0,0.00027767,2]
[314270909,1708135844996,-500.0,0.0002778,3]
[314270910,1708135845006,-500.0,0.0002786,3]
[314270911,1708135845015,-500.0,0.0002786,3]
[314270912,1708135845024,-500.0,0.0002786,3]
[314270913,1708135845033,-500.0,0.0002786,3]
[314270914,1708135845043,-500.0,0.00027945,2]
[314270915,1708135845052,-720.55,0.00027945,2]
[314270916,1708135845061,-738.38,0.00027945,2]
[314270917,1708135845071,-500.0,0.00027945,2]
[314270918,1708135845081,-572.36,0.00027945,2]
[314270919,1708135845090,-1477.67,0.00027945,2]
[314270920,1708135845099,-1382.91,0.00027945,2]
[314270921,1708135845108,-500.0,0.00027945,2]
[314270922,1708135845117,-562.38075067,0.00027945,2]
[314270923,1708135845126,-500.0,0.00027945,2]
[314270924,1708135845135,-618.1,0.00027945,2]
[314270925,1708135845145,-739.4,0.00027945,2]
[314270926,1708135845154,-981.09,0.00027945,2]
[314270927,1708135845164,-500.0,0.00027945,2]
[314270928,1708135845173,-1000.0,0.00027945,2]
[314270929,1708135845182,-500.0,0.00027945,2]
[314270930,1708135845191,-500.0,0.00027945,2]
[314270931,1708135845201,-525.7,0.00027945,2]
[314270932,1708135845210,-8176.88,0.00027945,2]
[314270933,1708135845218,-1146.36,0.00027945,2]
[314270934,1708135845228,-500.0,0.00027945,2]
[314270935,1708135845237,-11653.22,0.00027945,2]
[314270936,1708135845246,-500.0,0.00027945,2]
[314270937,1708135845255,-500.0,0.00027945,2]
[314270938,1708135845264,-500.0,0.00027945,2]
[314270939,1708135845273,-500.0,0.00027945,2]
[314270940,1708135845282,-2563.96,0.00027945,2]
[314270941,1708135845291,-500.0,0.00027945,2]
[314270942,1708135845300,-1285.76,0.00027945,2]
[314270943,1708135845309,-500.0,0.00027945,2]
[314270944,1708135845318,-8220.15,0.00027945,2]
[314270945,1708135845327,-500.0,0.00027945,2]
[314270946,1708135845336,-585.24,0.00027945,2]
[314270947,1708135845345,-1135.68,0.00027945,2]
[314270948,1708135845354,-6995.47,0.00027945,2]
[314270949,1708135845363,-2191.29,0.00027945,2]
[314270950,1708135845372,-833.47,0.00027945,2]
[314270951,1708135845381,-979.09,0.00027945,2]
[314270952,1708135845390,-1158.11,0.00027945,2]
[314270953,1708135845399,-500.0,0.00027945,2]
[314270954,1708135845408,-500.0,0.00027945,2]
[314270955,1708135845418,-993.08,0.00027945,2]
[314270956,1708135845427,-11696.44,0.00027945,2]
[314270957,1708135845436,-1785.54,0.00027945,2]
[314270958,1708135845445,-6176.17,0.00027945,2]
[314270959,1708135845454,-5016.14,0.00027945,2]
[314270960,1708135845464,-799.95,0.00027945,2]
[314270961,1708135845473,-500.0,0.00027945,2]
[314270962,1708135845482,-1910.65,0.00027945,2]
[314270963,1708135845491,-1506.49,0.00027945,2]
[314270964,1708135845500,-1249.49,0.00027945,2]
[314270965,1708135845509,-1110.82,0.00027945,2]
[314270966,1708135845518,-500.0,0.00027945,2]
[314270967,1708135845527,-500.0,0.00027945,2]
[314270968,1708135845536,-500.0,0.00027945,2]
[314270969,1708135845545,-500.0,0.00027945,2]
[314270970,1708135845554,-1025.06,0.00027945,2]
[314270971,1708135845563,-737.58,0.00027945,2]
[314270972,1708135845572,-500.0,0.00027945,2]
[314270973,1708135845581,-153.0,0.00027945,2]
[314270974,1708135845590,-153.0,0.00027945,2]
[314270975,1708135845599,-306.0,0.00027945,2]
[314270976,1708135845608,-391.0,0.00028021,15]
[314270977,1708135845618,-621.21603328,0.00028071,2]
[314270978,1708135845627,-300.0,0.00028138,2]
[314270979,1708135845636,-1589.31384727,0.00028218,2]
[314270980,1708135845645,-500.0,0.00028219,2]
[314270981,1708135845654,-720.55,0.00028219,2]
[314270982,1708135845663,-738.38,0.00028219,2]
[314270983,1708135845672,-337.10813149,0.00028219,2]
[314270984,1708135845681,-572.36,0.00028219,2]
[314270985,1708135845691,-1477.67,0.00028219,2]
[314270986,1708135845700,-1382.91,0.00028219,2]
[314270987,1708135845709,-500.0,0.00028219,2]
[314270988,1708135845718,-500.0,0.00028219,2]
[314270989,1708135845727,-618.1,0.00028219,2]
[314270990,1708135845736,-739.4,0.00028219,2]
[314270991,1708135845745,-981.09,0.00028219,2]
[314270992,1708135845754,-500.0,0.00028219,2]
[314270993,1708135845763,-1000.0,0.00028219,2]
[314270994,1708135845772,-500.0,0.00028219,2]
[314270995,1708135845781,-500.0,0.00028219,2]
[314270996,1708135845790,-525.7,0.00028219,2]
[314270997,1708135845799,-8176.88,0.00028219,2]
[314270998,1708135845808,-1146.36,0.00028219,2]
[314270999,1708135845818,-500.0,0.00028219,2]
[314271000,1708135845829,-11653.22,0.00028219,2]
[314271001,1708135845838,-500.0,0.00028219,2]
[314271002,1708135845847,-500.0,0.00028219,2]
[314271003,1708135845856,-444.99441182,0.00028219,2]
[314271004,1708135845866,-500.0,0.00028219,2]
[314271005,1708135845875,-2563.96,0.00028219,2]
[314271006,1708135845884,-500.0,0.00028219,2]
[314271007,1708135845894,-1285.76,0.00028219,2]
[314271008,1708135845903,-500.0,0.00028219,2]
[314271009,1708135845912,-8220.15,0.00028219,2]
[314271010,1708135845921,-500.0,0.00028219,2]
[314271011,1708135845930,-585.24,0.00028219,2]
[314271012,1708135845940,-1135.68,0.00028219,2]
[314271013,1708135845949,-6995.47,0.00028219,2]
[314271014,1708135845958,-2191.29,0.00028219,2]
[314271015,1708135845967,-833.47,0.00028219,2]
[314271016,1708135845977,-979.09,0.00028219,2]
[314271017,1708135845986,-1158.11,0.00028219,2]
[314271018,1708135845995,-500.0,0.00028219,2]
[314271019,1708135846005,-157.04852254,0.00028219,2]
[314271020,1708135846015,-993.08,0.00028219,2]
[314271021,1708135846024,-11696.44,0.00028219,2]
[314271022,1708135846033,-1785.54,0.00028219,2]
[314271023,1708135846042,-6176.17,0.00028219,2]
[314271024,1708135846052,-5016.14,0.00028219,2]
[314271025,1708135846065,-799.95,0.00028219,2]
[314271026,1708135846089,-500.0,0.00028219,2]
[314271027,1708135846111,-1910.65,0.00028219,2]
[314271028,1708135846133,-1506.49,0.00028219,2]
[314271029,1708135846154,-1249.49,0.00028219,2]
[314271030,1708135846175,-1110.82,0.00028219,2]
[314271031,1708135846200,-500.0,0.00028219,2]
[314271032,1708135846211,-500.0,0.00028219,2]
[314271033,1708135846220,-500.0,0.00028219,2]
[314271034,1708135846230,-500.0,0.00028219,2]
[314271035,1708135846239,-1025.06,0.00028219,2]
[314271036,1708135846249,-737.58,0.00028219,2]
[314271037,1708135846258,-500.0,0.00028219,2]
[314271038,1708135846267,-1804.84857462,0.00028393,2]
[314271039,1708135846276,-220.74158942,0.00028395,2]
[314271040,1708135846285,-500.0,0.00028483,3]
[314271041,1708135846295,-155.00310006,0.00028491,7]
[314271042,1708135846304,-924.79813593,0.00028491,2]
[314271043,1708135846313,-155.1219646,0.00028491,2]
[314271044,1708135846323,-3337.56891114,0.00028492,2]
[314271045,1708135846332,-500.0,0.00028493,2]
[314271046,1708135846342,-720.55,0.00028493,2]
[314271047,1708135846351,-738.38,0.00028493,2]
[314271048,1708135846360,-572.36,0.00028493,2]
[314271049,1708135846369,-1477.67,0.00028493,2]
[314271050,1708135846378,-1382.91,0.00028493,2]
[314271051,1708135846387,-500.0,0.00028493,2]
[314271052,1708135846396,-500.0,0.00028493,2]
[314271053,1708135846406,-618.1,0.00028493,2]
[314271054,1708135846415,-739.4,0.00028493,2]
[314271055,1708135846425,-981.09,0.00028493,2]
[314271056,1708135846434,-500.0,0.00028493,2]
[314271057,1708135846443,-1000.0,0.00028493,2]
[314271058,1708135846453,-500.0,0.00028493,2]
[314271059,1708135846463,-500.0,0.00028493,2]
[314271060,1708135846472,-525.7,0.00028493,2]
[314271061,1708135846481,-8176.88,0.00028493,2]
[314271062,1708135846490,-1146.36,0.00028493,2]
[314271063,1708135846499,-500.0,0.00028493,2]
[314271064,1708135846509,-11653.22,0.00028493,2]
[314271065,1708135846518,-500.0,0.00028493,2]
[314271066,1708135846527,-500.0,0.00028493,2]
[314271067,1708135846536,-500.0,0.00028493,2]
[314271068,1708135846545,-2563.96,0.00028493,2]
[314271069,1708135846554,-613.56668894,0.00028493,2]
[314271070,1708135846563,-1285.76,0.00028493,2]
[314271071,1708135846572,-500.0,0.00028493,2]
[314271072,1708135846581,-8220.15,0.00028493,2]
[314271073,1708135846590,-500.0,0.00028493,2]
[314271074,1708135846599,-585.24,0.00028493,2]
[314271075,1708135846608,-1135.68,0.00028493,2]
[314271076,1708135846617,-6995.47,0.00028493,2]
[314271077,1708135846626,-2191.29,0.00028493,2]
[314271078,1708135846635,-833.47,0.00028493,2]
[314271079,1708135846644,-979.09,0.00028493,2]
[314271080,1708135846653,-1158.11,0.00028493,2]
[314271081,1708135846662,-500.0,0.00028493,2]
[314271082,1708135846671,-993.08,0.00028493,2]
[314271083,1708135846680,-11696.44,0.00028493,2]
[314271084,1708135846689,-1785.54,0.00028493,2]
[314271085,1708135846698,-6176.17,0.00028493,2]
[314271086,1708135846707,-5016.14,0.00028493,2]
[314271087,1708135846716,-799.95,0.00028493,2]
[314271088,1708135846725,-500.0,0.00028493,2]
[314271089,1708135846735,-1910.65,0.00028493,2]
[314271090,1708135846743,-1506.49,0.00028493,2]
[314271091,1708135846752,-1249.49,0.00028493,2]
[314271092,1708135846761,-1110.82,0.00028493,2]
[314271093,1708135846770,-500.0,0.00028493,2]
[314271094,1708135846847,-500.0,0.00028493,2]
[314271095,1708135846858,-500.0,0.00028493,2]
[314271096,1708135846867,-500.0,0.00028493,2]
[314271097,1708135846876,-1025.06,0.00028493,2]
[314271098,1708135846885,-737.58,0.00028493,2]
[314271099,1708135846895,-500.0,0.00028493,2]
[314271100,1708135846904,-309.7117813,0.00028493,2]
[314271101,1708135846914,-150.0,0.00028507,2]
[314271102,1708135846923,-300.0,0.00028509,2]
[314271103,1708135846932,-3174.1764,0.0002859,7]
[314271104,1708135846941,-36719.00918156,0.00028667,2]
[314271105,1708135846951,-500.0,0.00028767,2]
[314271106,1708135846960,-720.55,0.00028767,2]
[314271107,1708135846970,-738.38,0.00028767,2]
[314271108,1708135846979,-155.0,0.00028767,2]
[314271109,1708135846989,-572.36,0.00028767,2]
[314271110,1708135846998,-1477.67,0.00028767,2]
[314271111,1708135847007,-1382.91,0.00028767,2]
[314271112,1708135847017,-500.0,0.00028767,2]
[314271113,1708135847026,-500.0,0.00028767,2]
[314271114,1708135847035,-618.1,0.00028767,2]
[314271115,1708135847044,-739.4,0.00028767,2]
[314271116,1708135847053,-981.09,0.00028767,2]
[314271117,1708135847062,-500.0,0.00028767,2]
[314271118,1708135847072,-1000.0,0.00028767,2]
[314271119,1708135847081,-500.0,0.00028767,2]
[314271120,1708135847090,-500.0,0.00028767,2]
[314271121,1708135847099,-525.7,0.00028767,2]
[314271122,1708135847108,-8176.88,0.00028767,2]
[314271123,1708135847117,-1146.36,0.00028767,2]
[314271124,1708135847126,-500.0,0.00028767,2]
[314271125,1708135847135,-11653.22,0.00028767,2]
[314271126,1708135847144,-500.0,0.00028767,2]
[314271127,1708135847153,-500.0,0.00028767,2]
[314271128,1708135847163,-500.0,0.00028767,2]
[314271129,1708135847172,-2563.96,0.00028767,2]
[314271130,1708135847181,-1285.76,0.00028767,2]
[314271131,1708135847190,-500.0,0.00028767,2]
[314271132,1708135847199,-8220.15,0.00028767,2]
[314271133,1708135847208,-500.0,0.00028767,2]
[314271134,1708135847218,-585.24,0.00028767,2]
[314271135,1708135847226,-1135.68,0.00028767,2]
[314271136,1708135847235,-6995.47,0.00028767,2]
[314271137,1708135847245,-2191.29,0.00028767,2]
[314271138,1708135847254,-833.47,0.00028767,2]
[314271139,1708135847263,-979.09,0.00028767,2]
[314271140,1708135847272,-1158.11,0.00028767,2]
[314271141,1708135847281,-500.0,0.00028767,2]
[314271142,1708135847290,-993.08,0.00028767,2]
[314271143,1708135847299,-11696.44,0.00028767,2]
[314271144,1708135847308,-1785.54,0.00028767,2]
[314271145,1708135847316,-6176.17,0.00028767,2]
[314271146,1708135847326,-5016.14,0.00028767,2]
[314271147,1708135847335,-799.95,0.00028767,2]
[314271148,1708135847344,-500.0,0.00028767,2]
[314271149,1708135847353,-1910.65,0.00028767,2]
[314271150,1708135847362,-1506.49,0.00028767,2]
[314271151,1708135847371,-1249.49,0.00028767,2]
[314271152,1708135847379,-1110.82,0.00028767,2]
[314271153,1708135847389,-500.0,0.00028767,2]
[314271154,1708135847398,-500.0,0.00028767,2]
[314271155,1708135847407,-500.0,0.00028767,2]
[314271156,1708135847417,-500.0,0.00028767,2]
[314271157,1708135847425,-1025.06,0.00028767,2]
[314271158,1708135847435,-737.58,0.00028767,2]
[314271159,1708135847444,-500.0,0.00028767,2]
[314271160,1708135847453,-1804.84857456,0.00028799,2]
[314271161,1708135847463,-300.0,0.000288,14]
[314271162,1708135847472,-300.0,0.0002888,2]
[314271163,1708135847482,-422.16862063,0.00029,2]
[314271164,1708135847491,-4714.21762942,0.00029029,2]
[314271165,1708135847500,-1954.14,0.0002904,2]
[314271166,1708135847509,-1954.14,0.0002904,2]
[314271167,1708135847518,-1954.14,0.0002904,2]
[314271168,1708135847527,-1954.14,0.0002904,2]
[314271169,1708135847536,-1954.14,0.0002904,2]
[314271170,1708135847546,-1954.14,0.0002904,2]
[314271171,1708135847555,-1954.14,0.0002904,2]
[314271172,1708135847564,-1954.14,0.0002904,2]
[314271173,1708135847573,-1954.14,0.0002904,2]
[314271174,1708135847582,-500.0,0.00029041,2]
[314271175,1708135847591,-720.55,0.00029041,2]
[314271176,1708135847600,-738.38,0.00029041,2]
[314271177,1708135847609,-572.36,0.00029041,2]
[314271178,1708135847618,-1477.67,0.00029041,2]
[314271179,1708135847627,-1382.91,0.00029041,2]
[314271180,1708135847637,-500.0,0.00029041,2]
[314271181,1708135847646,-500.0,0.00029041,2]
[314271182,1708135847655,-618.1,0.00029041,2]
[314271183,1708135847664,-739.4,0.00029041,2]
[314271184,1708135847673,-981.09,0.00029041,2]
[314271185,1708135847682,-500.0,0.00029041,2]
[314271186,1708135847691,-1000.0,0.00029041,2]
[314271187,1708135847700,-486.24233895,0.00029041,2]
[314271188,1708135847709,-500.0,0.00029041,2]
[314271189,1708135847718,-525.7,0.00029041,2]
[314271190,1708135847726,-8176.88,0.00029041,2]
[314271191,1708135847736,-500.0,0.00029041,2]
[314271192,1708135847745,-1146.36,0.00029041,2]
[314271193,1708135847754,-11653.22,0.00029041,2]
[314271194,1708135847764,-500.0,0.00029041,2]
[314271195,1708135847773,-500.0,0.00029041,2]
[314271196,1708135847782,-500.0,0.00029041,2]
[314271197,1708135847791,-2563.96,0.00029041,2]
[314271198,1708135847800,-1285.76,0.00029041,2]
[314271199,1708135847810,-500.0,0.00029041,2]
[314271200,1708135847821,-8220.15,0.00029041,2]
[314271201,1708135847830,-500.0,0.00029041,2]
[314271202,1708135847839,-585.24,0.00029041,2]
[314271203,1708135847849,-1135.68,0.00029041,2]
[314271204,1708135847858,-6995.47,0.00029041,2]
[314271205,1708135847867,-2191.29,0.00029041,2]
[314271206,1708135847877,-833.47,0.00029041,2]
[314271207,1708135847886,-979.09,0.00029041,2]
[314271208,1708135847895,-1158.11,0.00029041,2]
[314271209,1708135847905,-500.0,0.00029041,2]